Cogmind - Beta 13 @@@ ROGUE MODE // 2024.04.01 @ 01:09:06 Player: 3.14 Result: Destroyed by B-99 Colossus with Multirail Performance ------------- Evolutions (9) 4500 Regions Visited (23) 4600 Robots Destroyed (210) 1050 Value Destroyed (15744) 15744 Prototype IDs (24) 480 Alien Tech Used (5) 1000 Bonus (10317) 10317 TOTAL SCORE: 37691 Bonus ------- High Alert Combat Kills 1488 Follower Combat Kills 4509 Entered Garrisons 1800 Used RIF Installer 6000 Friendly Fire -3480 Cogmind --------- Core Integrity 0/1600 Matter 257/300 Energy 99/100 System Corruption 0% Temperature Cool (0) Movement Core (50) Location -1/Access Parts ------- > --- POWER (2) -------- (None) > --- PROPULSION (4) --- (None) > --- UTILITY (16) ----- (None) > --- WEAPON (3) ------- (None) > --- INVENTORY (5) ---- Stasis Canceller Stasis Canceller Subatomic Replicator Peak State ------------ > --- POWER ------------ Light Quantum Reactor > --- PROPULSION ------- Advanced Heavy Treads Centrium Heavy Treads > --- UTILITY ---------- Advanced Heat Sink Advanced Cooling System Huge Storage Unit Matter Compressor Centrium Heavy Armor Plating Centrium Heavy Armor Plating Relay Coupler [NC] Relay Coupler [Swarmer] Relay Coupler [Swarmer] Relay Coupler [Grunt] Relay Coupler [Grunt] Relay Coupler [Grunt] Relay Coupler [Sentry] Relay Coupler [Hunter] > --- WEAPON ----------- Core Stripper > --- INVENTORY -------- Advanced Heavy Treads Centrium Heavy Armor Plating Relay Coupler [Sentry] Relay Coupler [Demolisher] Relay Coupler [Heavy] Relay Coupler [Heavy] Long-range Tractor Beam Dimensional Node Initializer Transdimensional Reconstructor Transdimensional Reconstructor Transdimensional Reconstructor Subatomic Replicator Phase Gun Light Antimatter Cannon Sigix Terminator Advanced Remote Datajack Sigix Broadsword [Rating: 169] Favorites ----------- Power Particle Reactor Engine Reinforced Deuterium Engine Power Core Nuclear Core Reactor Particle Reactor Propulsion Light Treads Treads Light Treads Flight Unit Q-thruster Utility Relay Coupler [Sentry] Device Improved Heat Sink Storage Huge Storage Unit Processor Improved Targeting Computer Hackware Relay Coupler [Sentry] Protection Medium Reactive Plating Artifact Phase Armor Weapon Enhanced Autogun Energy Gun Phase Gun Energy Cannon HERF Cannon Ballistic Gun Enhanced Autogun Ballistic Cannon Gauss Cannon Launcher Mini Grenade Launcher Special Weapon Remote Datajack Impact Weapon Core Stripper Slashing Weapon Katana Build | -11 -10 -9 -8 -8 -8 -8 -7 -7 -6 -6 -5 -5 -5 -5 -4 -4 -4 -4 -3 -3 -2 -2 -1 ------- Run | Yrd Mat Mat Mat Gar Mat Gar Fac Gar Fac Gar Fac Gar Fac Gar Fac Gar Fac Gar Res Gar Res Qua Acc Slots Evolved 18 | . . 2 2 . . . 2 . 2 . 2 . . . 2 . . . 2 . 2 . 2 Power 1 | . . . . . . . . . . . . . . . . . . . . . . . 1 Propulsion 2 | . . 1 . . . . . . 1 . . . . . . . . . . . . . . Utility 14 | . . 1 2 . . . 2 . 1 . 2 . . . 2 . . . 2 . 2 . . Weapon 1 | . . . . . . . . . . . . . . . . . . . . . . . 1 Parts Attached 382 | 7 5 15 25 21 2 15 1 45 4 28 13 23 16 26 2 30 . 15 9 23 7 44 6 Power 11 | 1 . 1 2 2 . . . 1 . . . . 1 1 . . . . . 1 . 1 . Engine 5 | 1 . 1 1 1 . . . . . . . . . 1 . . . . . . . . . Core 3 | . . . 1 1 . . . . . . . . 1 . . . . . . . . . . Reactor 3 | . . . . . . . . 1 . . . . . . . . . . . 1 . 1 . Propulsion 65 | 2 3 7 10 5 1 2 . 6 1 3 2 2 3 3 . 1 . 1 2 . . 9 2 Treads 64 | 2 3 7 10 5 1 2 . 6 1 3 2 2 3 3 . 1 . 1 2 . . 9 1 Leg . | . . . . . . . . . . . . . . . . . . . . . . . . Wheel . | . . . . . . . . . . . . . . . . . . . . . . . . Hover . | . . . . . . . . . . . . . . . . . . . . . . . . Flight 1 | . . . . . . . . . . . . . . . . . . . . . . . 1 Utility 144 | 2 2 2 8 5 . 9 1 16 1 10 5 8 6 16 2 17 . 5 3 5 5 15 1 Device 26 | . . 2 1 2 . 1 . 1 . . 3 1 2 2 . . . 1 . 1 . 8 1 Storage 6 | 2 1 . 1 . . . . . . . . . 1 . . . . . . . . 1 . Processor 7 | . 1 . 1 . . . . 1 1 . . . . . . 1 . . . . 2 . . Hackware 69 | . . . 1 . . 6 1 12 . 7 1 5 1 8 2 12 . 3 3 3 2 2 . Protection 35 | . . . 4 3 . 2 . 2 . 3 1 2 2 6 . 4 . 1 . 1 1 3 . Artifact 1 | . . . . . . . . . . . . . . . . . . . . . . 1 . Weapon 162 | 2 . 5 5 9 1 4 . 22 2 15 6 13 6 6 . 12 . 9 4 17 2 19 3 Energy Gun 3 | . . . . . . . . . . . . . . . . . . . . . . 3 . Energy Cannon 3 | . . . . . . . . . . . . . . . . . . . . . . . 3 Ballistic Gun 54 | 2 . 2 3 4 . 1 . 11 . 5 3 5 1 2 . 3 . 3 1 6 1 1 . Ballistic Cannon 33 | . . 3 1 3 1 . . . . 5 . 1 1 . . 4 . 3 1 4 . 6 . Launcher 6 | . . . 1 2 . . . . . . . 2 1 . . . . . . . . . . Special Weapon 40 | . . . . . . 2 . 5 1 3 3 4 2 3 . 4 . 3 2 6 1 1 . Impact Weapon 1 | . . . . . . . . . . . . . . . . . . . . . . 1 . Slashing Weapon 22 | . . . . . . 1 . 6 1 2 . 1 1 1 . 1 . . . 1 . 7 . Piercing Weapon . | . . . . . . . . . . . . . . . . . . . . . . . . Special Melee Weapon . | . . . . . . . . . . . . . . . . . . . . . . . . Unidentified Prototypes 10 | . . 1 1 . . . . . . . . . . 1 . . . . 1 . . 6 . Parts Lost 29 | . . . 2 1 . . . . . . 1 1 1 1 . . . 1 . 4 . 12 5 Power 2 | . . . . . . . . . . . . . . . . . . . . . . 2 . Propulsion 7 | . . . . . . . . . . . 1 . 1 . . . . . . . . 1 4 Utility 18 | . . . 2 1 . . . . . . . 1 . 1 . . . 1 . 3 . 8 1 Weapon 2 | . . . . . . . . . . . . . . . . . . . . 1 . 1 . Highest Loss Streak 3 | . . . 1 1 . . . . . . 1 1 1 1 . . . 1 . 2 . 3 2 To Critical Strikes 2 | . . . . . . . . . . . 1 . 1 . . . . . . . . . . Average Slot Usage (%) 92 | . 92 98 95 98 100 99 88 99 95 99 97 98 92 90 84 84 84 87 89 86 89 79 8 Engine 2 | . 14 11 4 3 . . . . . . . . . 3 5 5 5 5 4 1 . . . Core 2 | . . . 4 5 9 9 7 4 . . . . 1 1 . . . . . . . . . Reactor 1 | . . . . . . . . 2 6 6 5 5 3 . . . . . . 2 4 3 . Treads 19 | . 27 33 26 27 27 27 23 23 26 25 23 23 19 14 10 10 10 10 9 9 8 7 6 Device 4 | . . 9 11 9 9 10 7 3 . . 4 3 1 . . . . . . 2 . 7 1 Storage 6 | . 16 11 9 9 9 9 7 7 6 6 5 5 5 5 5 5 5 5 4 4 4 4 . Processor 7 | . 4 11 9 9 9 1 . 3 8 13 11 11 11 11 10 10 10 10 9 8 7 2 . Hackware 21 | . . . . 1 . 14 19 30 26 25 23 23 28 26 26 30 36 35 45 44 51 41 . Protection 8 | . . . 11 15 18 8 7 6 6 5 8 10 6 11 15 14 10 9 5 4 4 3 . Ballistic Gun 7 | . 28 12 15 13 13 1 . 7 2 7 9 8 5 2 . . . 4 4 1 4 . . Ballistic Cannon 2 | . . 9 2 4 4 6 . . . 1 . . 1 . . 4 5 4 2 2 . 1 . Special Weapon 1 | . . . . . . 7 7 3 5 2 1 . 2 3 5 . . . 1 . 3 . . Slashing Weapon 1 | . . . . . . 2 7 3 4 1 . . . 3 5 . . . . . . 1 . Naked Turns 25 | . . . . . . . . . . . . . . . . . . . . . . 5 20 Heaviest Build 158 | 19 49 53 102 111 115 115 101 124 124 132 138 136 137 135 135 157 150 150 135 143 119 158 12 Greatest Support 160 | 40 40 66 66 60 60 60 60 67 90 90 90 100 123 150 150 150 150 150 160 160 160 160 75 Greatest Overweight (x) 1 | . 1 . 1 1 1 1 1 1 1 1 1 1 1 1 . 1 . . . . . 1 . Average Overweight (x) . | . . . . 1 1 1 1 1 1 1 1 1 . . . . . . . . . . . Largest Inventory Capacity 25 | 8 20 20 25 25 25 25 25 25 25 25 25 25 25 25 25 25 25 25 25 25 25 25 5 Average Capacity 24 | 7 17 20 24 25 25 25 25 25 25 25 25 25 25 25 25 25 25 25 25 25 25 24 5 Most Carried 25 | 3 14 20 25 25 25 25 25 25 24 25 25 25 25 25 24 25 25 25 25 25 25 25 5 Average Carried 23 | 2 9 19 23 24 24 24 24 24 24 24 24 24 24 24 24 24 25 24 23 22 23 23 3 Final Capacity 25 | 8 20 20 25 25 25 25 25 25 25 25 25 25 25 25 25 25 25 25 25 25 25 5 5 Final Carried 25 | 3 14 20 25 25 25 25 25 25 24 25 25 25 25 25 24 25 25 24 25 23 24 4 3 Class Distribution -------------------- 64% | Botlord-Mutant 13% | Scavenger-Mutant 12% | Mutant 9% | Bothacker-Mutant Dominant Class ---------------- Mutant | -10/Materials Mutant | -9/Materials Mutant | -8/Materials Scavenger-Mutant | -8/Garrison Bothacker-Mutant | -8/Materials Bothacker-Mutant | -8/Garrison Bothacker-Mutant | -7/Factory Botlord-Mutant | -7/Garrison Botlord-Mutant | -6/Factory Botlord-Mutant | -6/Garrison Botlord-Mutant | -5/Factory Botlord-Mutant | -5/Garrison Botlord-Mutant | -5/Factory Botlord-Mutant | -5/Garrison Botlord-Mutant | -4/Factory Botlord-Mutant | -4/Garrison Botlord-Mutant | -4/Factory Botlord-Mutant | -4/Garrison Botlord-Mutant | -3/Research Botlord-Mutant | -3/Garrison Botlord-Mutant | -2/Research Botlord-Mutant | -2/Quarantine Mutant | -1/Access Resources | -11 -10 -9 -8 -8 -8 -8 -7 -7 -6 -6 -5 -5 -5 -5 -4 -4 -4 -4 -3 -3 -2 -2 -1 ----------- Run | Yrd Mat Mat Mat Gar Mat Gar Fac Gar Fac Gar Fac Gar Fac Gar Fac Gar Fac Gar Res Gar Res Qua Acc Matter Collected 11095 | 286 181 488 968 892 40 295 28 687 . 582 290 614 386 656 29 986 . 918 174 984 379 1210 22 Remotely 929 | . . . . . . . . . . . 91 . 125 . . . . 94 . 443 . 176 . Salvage Created 8814 | 100 243 555 1352 974 46 95 . 432 . 471 159 344 222 1120 29 822 . 521 94 533 63 639 . Parts 411 | 4 25 37 66 50 3 4 . 15 . 14 7 20 14 30 3 31 . 37 6 23 4 18 . Haulers Intercepted 9 | . 2 2 4 . . . . . . . . . . . . . . . . . . 1 . Recyclers Shooed 6 | . 2 1 2 . . . . . . . . . 1 . . . . . . . . . . Parts Field Recycled . | . . . . . . . . . . . . . . . . . . . . . . . . Retrieved Matter . | . . . . . . . . . . . . . . . . . . . . . . . . Parts Self-Destructed . | . . . . . . . . . . . . . . . . . . . . . . . . Prevented . | . . . . . . . . . . . . . . . . . . . . . . . . Kills | -11 -10 -9 -8 -8 -8 -8 -7 -7 -6 -6 -5 -5 -5 -5 -4 -4 -4 -4 -3 -3 -2 -2 -1 ------- Run | Yrd Mat Mat Mat Gar Mat Gar Fac Gar Fac Gar Fac Gar Fac Gar Fac Gar Fac Gar Res Gar Res Qua Acc Combat Hostiles Destroyed 172 | . 7 14 24 26 1 1 . 5 . 8 3 12 6 6 . 16 . 20 3 7 1 12 . Melee 3 | . . . . . . . . 1 . . . . . 1 . . . . . . . 1 . Guns 88 | . 7 4 16 15 . . . 4 . 6 2 5 1 5 . 3 . 11 1 2 1 5 . Cannons 67 | . . 10 6 8 1 1 . . . 2 . 1 3 . . 13 . 9 2 5 . 6 . AOE 14 | . . . 2 3 . . . . . . 1 6 2 . . . . . . . . . . Classes Destroyed 17 | 2 5 2 3 2 . . . . . 1 . 1 . 1 . . . . . . . . . Worker 6 | 2 . . 1 . . . . . . . . . 3 . . . . . . . . . . Builder 1 | . 1 . . . . . . . . . . . . . . . . . . . . . . Hauler 9 | . 2 2 4 . . . . . . . . . . . . . . . . . . 1 . Recycler 3 | 1 . 1 1 . . . . . . . . . . . . . . . . . . . . Mechanic 1 | . . . 1 . . . . . . . . . . . . . . . . . . . . Operator 3 | . 1 . . . . . . 1 . . . . . . 1 . . . . . . . . Swarmer 51 | . 6 3 3 4 . . . . . . . 8 3 1 . 2 . 17 3 . . 1 . Cutter 2 | . . . . . . . . . . . . 2 . . . . . . . . . . . Grunt 60 | . 1 6 13 13 . 1 . 3 . 4 2 2 2 5 . 3 . 1 . 1 . 3 . Brawler 6 | . . . 1 2 . . . . . . . . . . . 1 . . . 2 . . . Duelist 12 | . . 1 1 2 . . . . . 2 . . 1 . . 5 . . . . . . . Sentry 21 | . . 4 5 1 1 1 . 2 . 2 . . . . . 2 . 1 . 2 . . . Demolisher 1 | . . . . . . . . . . 1 . . . . . . . . . . . . . Specialist 2 | . . . . 1 . . . . . . . . . . . 1 . . . . . . . Hunter 6 | . . . 1 . . . . 1 . . . 1 . . . . . . . 1 . 2 . Programmer 18 | . . . . 3 . . . 2 . 1 1 . 1 . . 3 . 2 . 4 1 . . Behemoth 1 | . . . . . . . . . . . . . . 1 . . . . . . . . . Quarantine Guard 7 | . . . . . . . . . . . . . . . . . . . . . . 7 . Best Kill Streak 6 | 2 3 4 6 4 1 1 . 1 . 3 2 5 4 2 1 4 . 6 3 3 1 3 . Combat Bots Only 6 | . 3 3 4 4 1 1 . 1 . 3 2 5 2 2 . 4 . 6 3 3 1 3 . Max Kills in Single Turn 4 | 1 2 2 2 2 1 1 . 1 . 1 1 4 2 1 1 1 . 1 1 1 1 1 . Gunslinging 1 | . 1 . . . . . . . . . . . . . . . . . . . . . . Exploded 4 | . . . 2 2 . . . . . . 1 4 1 . . . . . . . . . . Melee 1 | . . . . . . . . 1 . . . . . 1 . . . . . . . 1 . Uniques/NPCs Destroyed . | . . . . . . . . . . . . . . . . . . . . . . . . Combat | -11 -10 -9 -8 -8 -8 -8 -7 -7 -6 -6 -5 -5 -5 -5 -4 -4 -4 -4 -3 -3 -2 -2 -1 -------- Run | Yrd Mat Mat Mat Gar Mat Gar Fac Gar Fac Gar Fac Gar Fac Gar Fac Gar Fac Gar Res Gar Res Qua Acc Hostile Shots Fired 1385 | . 23 61 123 80 4 27 . 55 1 77 17 87 40 42 5 105 . 83 10 106 20 221 198 Missed 448 | . 6 20 34 21 . 3 . 18 1 31 3 26 14 8 1 50 . 27 4 36 7 52 86 Damage Taken 19837 | . 142 467 1186 1012 66 206 . 376 . 573 434 813 515 518 69 1027 . 655 109 1430 321 7094 2824 Core 3027 | . . 45 107 66 . 12 . 58 . 49 97 148 . 32 . 111 . 72 . 172 26 520 1512 Absorbed by Shields 576 | . . . 144 . . 12 . . . . . 5 42 . . . . 66 . 307 . . . Reduced by Siege Mode 121 | . . . . . . . . . . . . . . . . . . . . . . 121 . Redirected to Core 12 | . . . . . . . . . . . . . . . . . . . . . . 12 . Ignored by Resistances 984 | . . . . . . . . 56 . 91 81 214 23 . 25 143 . 240 38 48 25 . . Regen/Repaired (Parts) 906 | . 56 174 414 . . . . . . . . . . . . . . . 66 . . 196 . Core Remaining (%) 82 | 100 100 88 . . . 66 . 91 . 94 . . . 72 . . . 84 . 86 . 42 . Volleys Fired 848 | 6 23 50 96 80 2 26 1 35 1 39 27 52 36 38 8 68 . 75 9 63 20 92 1 Largest 2 | 2 2 2 2 2 2 1 1 2 1 2 2 2 2 2 1 2 . 2 2 2 2 2 1 Hottest 148 | 40 40 62 64 83 76 48 5 50 5 96 58 73 73 58 7 83 . 83 81 86 71 148 88 Shots Fired 1328 | 12 46 100 191 157 4 27 1 49 1 57 39 82 56 55 8 92 . 124 16 73 25 112 1 Gun 744 | 12 46 53 162 114 2 2 . 29 . 25 24 62 29 34 . 24 . 54 7 11 16 38 . Cannon 396 | . . 47 28 38 2 11 . . . 15 . 2 11 . . 51 . 59 7 55 . 69 1 Launcher 11 | . . . 1 5 . . . . . . . 3 2 . . . . . . . . . . Special 177 | . . . . . . 14 1 20 1 17 15 15 14 21 8 17 . 11 2 7 9 5 . Kinetic 1122 | 12 46 100 190 152 4 13 . 29 . 40 24 64 40 34 . 75 . 113 14 66 16 90 . Thermal 17 | . . . . . . . . . . . . . . . . . . . . . . 17 . Explosive 11 | . . . 1 5 . . . . . . . 3 2 . . . . . . . . . . Electromagnetic 1 | . . . . . . . . . . . . . . . . . . . . . . . 1 Robot Hit Streak 33 | 9 7 10 29 33 2 5 5 11 10 18 17 12 12 11 6 16 . 12 6 21 13 15 . Robot Miss Streak 4 | 2 3 3 4 3 2 2 . 2 . 2 1 2 2 1 1 2 . 3 3 1 1 2 . Penetration Max 1 | . . . . . . . . . . . . . . 1 . 1 . . . 1 . 1 . Secondary Targets 6 | . 1 . 1 2 . . . . . . . 1 . 1 . . . . . . . . . Max Gunslinging Chain 1 | . 1 . 1 1 . . . . . . . 1 . 1 . . . . . . . . . Shots Hit Robots 994 | 9 31 71 134 103 2 16 1 42 1 49 32 54 40 86 8 77 . 74 9 42 21 92 . Core Hits 359 | 4 14 25 56 47 1 2 . 13 . 13 4 23 17 25 1 31 . 27 5 13 4 33 1 Critical Kills 2 | . . . . . . . . . . . . . . . . . . 1 . 1 . . . Critical Parts Destroyed 5 | . . . 1 . . . . 1 . 1 . . . . . . . . . 1 . 1 . Critical Strikes 39 | . . 2 3 1 . 1 . 1 . 3 . 1 . 2 . 5 . 4 1 6 . 9 . Destroy 7 | . . . 1 . . . . 1 . 1 . . . . . . . 1 . 2 . 1 . Blast 24 | . . 2 2 1 . 1 . . . . . 1 . . . 4 . 3 1 4 . 5 . Sever 8 | . . . . . . . . . . 2 . . . 2 . 1 . . . . . 3 . Melee Attacks 120 | . . . . . . 2 . 22 1 10 . 2 1 49 2 7 . . . 4 . 20 . Impact . | . . . . . . . . . . . . . . . . . . . . . . . . Slashing 120 | . . . . . . 2 . 22 1 10 . 2 1 49 2 7 . . . 4 . 20 . Piercing . | . . . . . . . . . . . . . . . . . . . . . . . . Sneak Attacks 23 | . . . . . . . . 2 . 6 . . . 5 1 . . . . 3 . 6 . Combat Hostiles 3 | . . . . . . . . . . . . . . . . . . . . . . 3 . Follow-up Attacks . | . . . . . . . . . . . . . . . . . . . . . . . . Damage Inflicted 25910 | 109 436 1324 2531 2208 51 187 . 565 . 989 432 1118 926 2976 67 2859 . 1931 182 2312 391 4296 20 Guns 9825 | 109 409 564 1936 1170 23 20 . 360 . 313 432 718 331 505 . 540 . 739 43 330 391 892 . Cannons 10365 | . . 742 436 700 28 167 . . . 302 . 57 290 . . 1959 . 1192 139 1806 . 2547 . Explosions 1049 | . . . 118 338 . . . . . . . 343 250 . . . . . . . . . . Melee 4420 | . . . . . . . . 205 . 374 . . . 2471 67 360 . . . 176 . 767 . Ramming 251 | . 27 18 41 . . . . . . . . . 55 . . . . . . . . 90 20 Kinetic 19805 | 109 409 1306 2372 1870 51 187 . 360 . 615 432 775 621 505 . 2499 . 1931 182 2136 391 3054 . Thermal 385 | . . . . . . . . . . . . . . . . . . . . . . 385 . Explosive 1049 | . . . 118 338 . . . . . . . 343 250 . . . . . . . . . . Electromagnetic . | . . . . . . . . . . . . . . . . . . . . . . . . Impact . | . . . . . . . . . . . . . . . . . . . . . . . . Slashing 4420 | . . . . . . . . 205 . 374 . . . 2471 67 360 . . . 176 . 767 . Piercing . | . . . . . . . . . . . . . . . . . . . . . . . . Highest Corruption 11 | . . . . 1 1 1 . 1 . . . 1 3 3 . 3 3 3 . 11 . 10 . Average Corruption 2 | . . . . 1 1 1 . 1 . . . 1 1 3 . 1 3 3 . 8 . 9 . Corruption Purged . | . . . . . . . . . . . . . . . . . . . . . . . . Corruption Blocked . | . . . . . . . . . . . . . . . . . . . . . . . . Effects 166 | . . . . 6 . 10 . 15 . . . 3 12 31 . 8 . 21 . 25 . 35 . Message Errors 39 | . . . . 2 . 2 . 3 . . . 1 4 5 . 3 . 6 . 4 . 9 . Matter Fused 39 | . . . . . . 2 . 4 . . . . 3 9 . 3 . 3 . 8 . 7 . Heat Flow Errors 18 | . . . . 2 . 2 . . . . . . . 7 . 1 . 2 . 2 . 2 . Energy Discharges 19 | . . . . 1 . . . 4 . . . 2 1 5 . . . 1 . . . 5 . Parts Rejected 5 | . . . . . . 1 . . . . . . . . . 1 . . . . . 3 . Parts Fused 1 | . . . . . . . . . . . . . . . . . . . . 1 . . . Data Loss (minor) 19 | . . . . . . 2 . 3 . . . . 1 3 . . . 2 . 6 . 2 . Data Loss (major) 11 | . . . . . . . . . . . . . 2 2 . . . 4 . . . 3 . Misfires 8 | . . . . 1 . 1 . . . . . . 1 . . . . 1 . 1 . 3 . Alerts 5 | . . . . . . . . 1 . . . . . . . . . 2 . 2 . . . Weapon Failures 2 | . . . . . . . . . . . . . . . . . . . . 1 . 1 . Overload Shots . | . . . . . . . . . . . . . . . . . . . . . . . . Overflow Damage 911 | . . 5 . 30 . . . . . 30 . 4 . 77 . 280 . 68 . 291 . 123 3 Projectiles 650 | . . 5 . 15 . . . . . . . . . . . 251 . 68 . 291 . 20 . Explosions 19 | . . . . 15 . . . . . . . 4 . . . . . . . . . . . Melee 242 | . . . . . . . . . . 30 . . . 77 . 29 . . . . . 103 3 Knockbacks 71 | . . 8 2 10 . 3 . . . 5 . 1 3 . . 20 . 8 1 8 . 2 . Impact 1 | . . 1 . . . . . . . . . . . . . . . . . . . . . Kinetic 67 | . . 7 2 10 . 3 . . . 5 . 1 3 . . 18 . 8 1 7 . 2 . Secondary 3 | . . . . . . . . . . . . . . . . 2 . . . 1 . . . Self-Inflicted Damage 136 | . . . . . . . . . . . . 45 . . . . . . . . . . 91 Shots 2 | . . . . . . . . . . . . 1 . . . . . . . . . . 1 Rammed 31 | . 7 3 5 . . . . . . . . . 5 . . . . . . . . 8 3 Targets Rammed 33 | . 8 3 5 . . . . . . . . . 6 . . . . . . . . 8 3 Kicked . | . . . . . . . . . . . . . . . . . . . . . . . . Crushed 2 | . 1 . . . . . . . . . . . 1 . . . . . . . . . . Highest Temperature 429 | . . 5 9 187 6 235 . 20 . 81 28 51 92 258 . 194 . 257 12 231 6 429 4 Average Temperature 48 | . . 3 4 28 4 109 . 9 . 17 7 12 33 84 . 41 . 53 5 53 6 96 4 Received Heat Transfer 2480 | . 6 153 454 369 18 36 . 75 . 75 18 69 154 225 9 9 . 32 . 40 63 504 171 Effects 3 | . . . . . . . . . . . . . . . . . . . . . . 3 . Shutdowns 1 | . . . . . . . . . . . . . . . . . . . . . . 1 . Energy Bleed 2 | . . . . . . . . . . . . . . . . . . . . . . 2 . Siege Activations 4 | . . . . . . . . . . . . . . . . . . . . . . 4 . Total Turns 65 | . . . . . . . . . . . . . . . . . . . . . . 65 . Longest Duration 30 | . . . . . . . . . . . . . . . . . . . . . . 30 . Robots Corrupted . | . . . . . . . . . . . . . . . . . . . . . . . . Combat Hostiles . | . . . . . . . . . . . . . . . . . . . . . . . . Parts Fried . | . . . . . . . . . . . . . . . . . . . . . . . . Impact Corruptions 1 | . . . . . . . . . . . . . . . . . . . . . . . 1 Robots Melted . | . . . . . . . . . . . . . . . . . . . . . . . . Combat Hostiles . | . . . . . . . . . . . . . . . . . . . . . . . . Parts Melted 1 | . . . . . . . . 1 . . . . . . . . . . . . . . . Heat Transferred 555 | . . . . . . . . . . . . . . . . . . . . . . 555 . Parts Sabotaged . | . . . . . . . . . . . . . . . . . . . . . . . . Parts Stolen . | . . . . . . . . . . . . . . . . . . . . . . . . Parts Stripped . | . . . . . . . . . . . . . . . . . . . . . . . . Power Chain Reactions . | . . . . . . . . . . . . . . . . . . . . . . . . Alert | -11 -10 -9 -8 -8 -8 -8 -7 -7 -6 -6 -5 -5 -5 -5 -4 -4 -4 -4 -3 -3 -2 -2 -1 ------- Run | Yrd Mat Mat Mat Gar Mat Gar Fac Gar Fac Gar Fac Gar Fac Gar Fac Gar Fac Gar Res Gar Res Qua Acc Peak Influence 1436 | 15 213 200 318 1436 746 1089 579 1368 779 1031 679 933 545 1083 583 1026 538 1058 718 1073 646 470 701 Initial 718 | . 9 8 56 112 700 484 571 405 718 531 541 249 489 381 568 81 538 376 594 523 603 48 224 Average 560 | 3 40 78 156 730 710 776 575 818 720 786 423 634 453 803 151 537 538 613 673 821 511 305 400 Maximum Alert Level 4 | . 1 1 1 4 3 3 2 4 3 3 2 3 2 3 2 3 2 3 3 3 2 2 3 Low Security (%) 17 | 100 97 97 71 6 . . . . . . . . . . 77 14 . . . . 16 16 . Level 1 15 | . 2 2 28 9 . . . . . . 56 24 21 4 11 25 . 14 . . . 63 56 Level 2 31 | . . . . 34 . 44 100 41 . 35 43 24 78 20 11 22 100 51 92 29 83 20 39 Level 3 31 | . . . . 25 100 55 . 37 100 64 . 50 . 74 . 37 . 34 7 70 . . 4 Level 4 4 | . . . . 24 . . . 20 . . . . . . . . . . . . . . . Level 5 . | . . . . . . . . . . . . . . . . . . . . . . . . High Security . | . . . . . . . . . . . . . . . . . . . . . . . . Max Security . | . . . . . . . . . . . . . . . . . . . . . . . . Squads Dispatched 23 | . 2 2 3 . . . . . . . 3 . 1 . . . . . 3 . 2 5 2 Investigation 4 | . . 1 1 . . . . . . . 1 . . . . . . . 1 . . . . Extermination 1 | . . . . . . . . . . . 1 . . . . . . . . . . . . Reinforcement 13 | . 2 1 2 . . . . . . . 1 . 1 . . . . . . . 1 4 1 Assault 5 | . . . . . . . . . . . . . . . . . . . 2 . 1 1 1 Garrison . | . . . . . . . . . . . . . . . . . . . . . . . . Intercept . | . . . . . . . . . . . . . . . . . . . . . . . . Searches Triggered . | . . . . . . . . . . . . . . . . . . . . . . . . Construction Impeded . | . . . . . . . . . . . . . . . . . . . . . . . . Haulers Reinforced . | . . . . . . . . . . . . . . . . . . . . . . . . Active Scanning Responses . | . . . . . . . . . . . . . . . . . . . . . . . . Cargo Convoy Interrupts . | . . . . . . . . . . . . . . . . . . . . . . . . Stealth | -11 -10 -9 -8 -8 -8 -8 -7 -7 -6 -6 -5 -5 -5 -5 -4 -4 -4 -4 -3 -3 -2 -2 -1 --------- Run | Yrd Mat Mat Mat Gar Mat Gar Fac Gar Fac Gar Fac Gar Fac Gar Fac Gar Fac Gar Res Gar Res Qua Acc Distress Signals 16 | . 1 2 9 . . . . . . . . . . . . . . . . . 1 . 3 Communications Jammed 39 | . . . . . . . . . . . . . . . . . . . . . 1 38 . Distress Signals 36 | . . . . . . . . . . . . . . . . . . . . . . 36 . Times Spotted 507 | . 13 21 42 28 1 19 . 30 3 30 17 24 23 38 3 43 . 45 6 21 14 44 42 Peak Tracking Total 18 | . 4 5 7 4 1 5 . 4 4 7 5 6 7 6 2 6 . 5 2 4 4 9 18 Tactical Retreats 32 | . . 1 2 2 . 1 . 1 1 3 . . 3 4 . 1 . 4 . 2 . 1 6 Traps | -11 -10 -9 -8 -8 -8 -8 -7 -7 -6 -6 -5 -5 -5 -5 -4 -4 -4 -4 -3 -3 -2 -2 -1 ------- Run | Yrd Mat Mat Mat Gar Mat Gar Fac Gar Fac Gar Fac Gar Fac Gar Fac Gar Fac Gar Res Gar Res Qua Acc Traps Triggered 60 | . 2 2 . 7 . 7 . 7 . 10 1 11 2 1 . 6 . . . 1 . 1 2 Indirectly . | . . . . . . . . . . . . . . . . . . . . . . . . Trap Hack Attempts . | . . . . . . . . . . . . . . . . . . . . . . . . Triggered . | . . . . . . . . . . . . . . . . . . . . . . . . Disarmed . | . . . . . . . . . . . . . . . . . . . . . . . . Reprogrammed . | . . . . . . . . . . . . . . . . . . . . . . . . Reused . | . . . . . . . . . . . . . . . . . . . . . . . . Traps Extracted . | . . . . . . . . . . . . . . . . . . . . . . . . Installed . | . . . . . . . . . . . . . . . . . . . . . . . . Triggered . | . . . . . . . . . . . . . . . . . . . . . . . . Machines | -11 -10 -9 -8 -8 -8 -8 -7 -7 -6 -6 -5 -5 -5 -5 -4 -4 -4 -4 -3 -3 -2 -2 -1 ---------- Run | Yrd Mat Mat Mat Gar Mat Gar Fac Gar Fac Gar Fac Gar Fac Gar Fac Gar Fac Gar Res Gar Res Qua Acc Machines Disabled 59 | . . . 2 4 . 5 . 7 . 4 7 4 1 3 . 2 . 4 . 5 . 10 1 Max in Single Turn 1 | . . . 1 1 . 1 . 1 . 1 . 1 1 1 . 1 . 1 . 1 . 1 1 Garrison Access 2 | . . . . . . . . . . . . . . . . . . . . . . 1 1 Garrison Relay 33 | . . . . 4 . 5 . 4 . 4 . 3 . 3 . 2 . 4 . 4 . . . Energy Cycler 1 | . . . . . . . . . . . . . . . . . . . . . . . 1 Machines Repaired . | . . . . . . . . . . . . . . . . . . . . . . . . Machines Dismantled . | . . . . . . . . . . . . . . . . . . . . . . . . Machines Sabotaged . | . . . . . . . . . . . . . . . . . . . . . . . . Overloaded Fab Kills . | . . . . . . . . . . . . . . . . . . . . . . . . Hacking | -11 -10 -9 -8 -8 -8 -8 -7 -7 -6 -6 -5 -5 -5 -5 -4 -4 -4 -4 -3 -3 -2 -2 -1 --------- Run | Yrd Mat Mat Mat Gar Mat Gar Fac Gar Fac Gar Fac Gar Fac Gar Fac Gar Fac Gar Res Gar Res Qua Acc Machines Accessed 52 | . 6 2 5 2 2 4 1 3 1 2 2 2 1 2 2 2 1 2 2 3 . 1 4 Terminals 36 | . 5 1 2 2 1 4 . 3 . 2 . 2 . 2 1 2 . 2 . 3 . 1 3 Fabricators 1 | . . . . . . . . . . . 1 . . . . . . . . . . . . Repair Stations 5 | . 1 1 2 . . . . . . . . . . . . . . . 1 . . . . Recycling Units . | . . . . . . . . . . . . . . . . . . . . . . . . Scanalyzers . | . . . . . . . . . . . . . . . . . . . . . . . . Garrison Access 10 | . . . 1 . 1 . 1 . 1 . 1 . 1 . 1 . 1 . 1 . . . 1 Total Hacks 112 | . 17 11 18 4 3 6 1 6 1 2 5 4 1 4 3 2 1 3 5 5 . 3 7 Successful 57 | . 9 7 14 1 1 2 1 2 1 1 1 . 1 1 2 2 1 . 4 2 . 1 3 Failed 54 | . 7 4 4 3 2 4 . 4 . 1 4 4 . 3 1 . . 3 1 3 . 2 4 Catastrophic 12 | . 2 1 . 1 . . . . . 1 1 1 . 1 . . . 1 . 1 . 1 1 Database Lockouts 1 | . 1 . . . . . . . . . . . . . . . . . . . . . . Manual 17 | . 9 3 3 . 2 . . . . . . . . . . . . . . . . . . Terminals 69 | . 14 3 3 4 2 6 . 6 . 2 . 4 . 4 2 2 . 3 . 5 . 3 6 Fabricators 4 | . . . . . . . . . . . 4 . . . . . . . . . . . . Repair Stations 29 | . 3 8 14 . . . . . . . . . . . . . . . 4 . . . . Recycling Units . | . . . . . . . . . . . . . . . . . . . . . . . . Scanalyzers . | . . . . . . . . . . . . . . . . . . . . . . . . Garrison Access 10 | . . . 1 . 1 . 1 . 1 . 1 . 1 . 1 . 1 . 1 . . . 1 Terminal Hacks 25 | . 7 1 2 1 . 2 . 2 . 1 . . . 1 1 2 . . . 2 . 1 2 Robot Analysis 1 | . 1 . . . . . . . . . . . . . . . . . . . . . . Prototype ID Bank 2 | . 1 . . . . . . . . . . . . . . . . . . . . . 1 Open Door 2 | . . . . . . . . . . 1 . . . . . . . . . . . 1 . Emergency Access Points 3 | . . . . . . . . 1 . . . . . 1 . 1 . . . . . . . Unreport Threat 5 | . 1 1 2 . . . . . . . . . . . 1 . . . . . . . . Locate Traps 2 | . 1 . . . . . . . . . . . . . . . . . . . . . 1 Recall Reinforcements 1 | . 1 . . . . . . . . . . . . . . . . . . . . . . Hauler Manifests 2 | . 2 . . . . . . . . . . . . . . . . . . . . . . Garrison Registry 2 | . . . . . . 1 . . . . . . . . . . . . . 1 . . . Patrol Navigation 2 | . . . . 1 . . . 1 . . . . . . . . . . . . . . . Security Stations 3 | . . . . . . 1 . . . . . . . . . 1 . . . 1 . . . Fabricator Hacks . | . . . . . . . . . . . . . . . . . . . . . . . . Repair Station Hacks 22 | . 2 6 11 . . . . . . . . . . . . . . . 3 . . . . Scan Component 12 | . 1 3 6 . . . . . . . . . . . . . . . 2 . . . . Repair 10 | . 1 3 5 . . . . . . . . . . . . . . . 1 . . . . Recycling Unit Hacks . | . . . . . . . . . . . . . . . . . . . . . . . . Scanalyzer . | . . . . . . . . . . . . . . . . . . . . . . . . Garrison Access Hacks 10 | . . . 1 . 1 . 1 . 1 . 1 . 1 . 1 . 1 . 1 . . . 1 Unlock Access 9 | . . . 1 . 1 . 1 . 1 . 1 . 1 . 1 . 1 . 1 . . . . Seal Access 1 | . . . . . . . . . . . . . . . . . . . . . . . 1 Unauthorized Hacks . | . . . . . . . . . . . . . . . . . . . . . . . . Terminals . | . . . . . . . . . . . . . . . . . . . . . . . . Fabricators . | . . . . . . . . . . . . . . . . . . . . . . . . Repair Stations . | . . . . . . . . . . . . . . . . . . . . . . . . Recycling Units . | . . . . . . . . . . . . . . . . . . . . . . . . Scanalyzers . | . . . . . . . . . . . . . . . . . . . . . . . . Garrison Access . | . . . . . . . . . . . . . . . . . . . . . . . . Data Cores Recovered 3 | . 1 . . . . . . . . . . . . . 1 . . . . . . 1 . Used 1 | . . . . . . . . . . . . . . . 1 . . . . . . . . Hacking Detections 39 | . 5 2 5 2 1 2 . 3 . 2 1 2 1 2 1 . 1 2 1 3 . . 3 Full Trace Events 4 | . . . 1 . . 1 . . . . 1 . . . . . . . 1 . . . . Feedback Events . | . . . . . . . . . . . . . . . . . . . . . . . . Feedback Blocked . | . . . . . . . . . . . . . . . . . . . . . . . . Robot Schematics Acquired 2 | . . . . . . . . . . . . . . . . . . . . . . 2 . Robots Built . | . . . . . . . . . . . . . . . . . . . . . . . . Authchips . | . . . . . . . . . . . . . . . . . . . . . . . . Time . | . . . . . . . . . . . . . . . . . . . . . . . . Total Robot Build Rating . | . . . . . . . . . . . . . . . . . . . . . . . . Part Schematics Acquired 11 | . . . . . . . . . . . . . . . . . . . . . . 11 . Parts Built . | . . . . . . . . . . . . . . . . . . . . . . . . Authchips . | . . . . . . . . . . . . . . . . . . . . . . . . Time . | . . . . . . . . . . . . . . . . . . . . . . . . Total Part Build Rating . | . . . . . . . . . . . . . . . . . . . . . . . . Parts Repaired 10 | . 1 3 5 . . . . . . . . . . . . . . . 1 . . . . Time 386 | . 26 78 204 . . . . . . . . . . . . . . . 78 . . . . Parts Recycled . | . . . . . . . . . . . . . . . . . . . . . . . . Recycled Matter . | . . . . . . . . . . . . . . . . . . . . . . . . Retrieved Matter . | . . . . . . . . . . . . . . . . . . . . . . . . Retrieved Components . | . . . . . . . . . . . . . . . . . . . . . . . . Parts Scanalyzed . | . . . . . . . . . . . . . . . . . . . . . . . . Part Schematics Acquired . | . . . . . . . . . . . . . . . . . . . . . . . . Parts Damaged . | . . . . . . . . . . . . . . . . . . . . . . . . Bothacking | -11 -10 -9 -8 -8 -8 -8 -7 -7 -6 -6 -5 -5 -5 -5 -4 -4 -4 -4 -3 -3 -2 -2 -1 ------------ Run | Yrd Mat Mat Mat Gar Mat Gar Fac Gar Fac Gar Fac Gar Fac Gar Fac Gar Fac Gar Res Gar Res Qua Acc Used RIF Installer 12 | . . . . 2 . 1 . 1 . 1 . 1 . 1 . 2 . 1 . 2 . . . Coupler Efficiency 2 | . . . . . . . . . . . . 1 . . . . . . . 1 . . . Command Fork 1 | . . . . . . . . . . . . . . . . . . . . 1 . . . Signal Jammer 1 | . . . . . . . . . . . . . . 1 . . . . . . . . . Zone Cloak 2 | . . . . 1 . . . . . . . . . . . . . 1 . . . . . Structural Interface 1 | . . . . . . . . . . . . . . . . 1 . . . . . . . Program Shield 1 | . . . . . . 1 . . . . . . . . . . . . . . . . . Autooverride 2 | . . . . . . . . 1 . . . . . . . 1 . . . . . . . Autoassimilate 1 | . . . . . . . . . . 1 . . . . . . . . . . . . . Robots Hacked 192 | . . . . . . 9 1 19 . 19 10 13 9 20 2 16 . 23 6 10 12 23 . Non-combat 8 | . . . . . . . 1 . . . 1 . 1 . 1 . . . 1 . 2 1 . Combat 184 | . . . . . . 9 . 19 . 19 9 13 8 20 1 16 . 23 5 10 10 22 . Autooverrided 49 | . . . . . . . . 3 . 4 . 3 1 5 . 1 . 13 3 3 2 11 . Autoassimilated 36 | . . . . . . . . . . 3 2 3 . 3 . 3 . 3 1 4 5 9 . Robot Hacks Applied 130 | . . . . . . 10 1 16 . 14 10 8 11 13 7 13 . 9 2 5 7 4 . parse_system 2 | . . . . . . . . . . 1 . . . . . . . 1 . . . . . drop_inventory 1 | . . . . . . . . . . . . . . . . . . . 1 . . . . purge_threat 9 | . . . . . . . . . . . 3 . . . 3 . . . . . 3 . . reprogram_traps 1 | . . . . . . . . . . . . . . . 1 . . . . . . . . block_reporting 1 | . . . . . . . . . . . . . . . 1 . . . . . . . . map_route 4 | . . . . . . . 1 . . . . . 1 . . . . . . . 1 1 . locate_prototypes 2 | . . . . . . . . . . . . . . . . . . . . . . 2 . find_garrison 2 | . . . . . . . . . . . . . 1 . 1 . . . . . . . . spike_heat 7 | . . . . . . . . 2 . . . 3 1 . . . . . . 1 . . . amplify_resonance 8 | . . . . . . 3 . 1 . 1 . . . 1 1 . . 1 . . . . . wipe_record 1 | . . . . . . . . . . . . . . . . 1 . . . . . . . disable_weapons 2 | . . . . . . 1 . . . . . . . 1 . . . . . . . . . reboot_system 1 | . . . . . . . . . . . 1 . . . . . . . . . . . . go_dormant 1 | . . . . . . . . . . 1 . . . . . . . . . . . . . overwrite_iff 39 | . . . . . . 1 . 6 . 5 3 4 2 5 . 5 . 6 . 1 . 1 . formatsys_high 49 | . . . . . . 5 . 7 . 6 3 1 6 6 . 7 . 1 1 3 3 . . Relay Couplers Released 153 | . . . . 21 . 20 . 21 . 16 . 13 . 12 . 11 . 20 . 17 . 2 . Machine Destruction 139 | . . . . 17 . 20 . 17 . 16 . 13 . 12 . 8 . 17 . 17 . 2 . Programmers 14 | . . . . 4 . . . 4 . . . . . . . 3 . 3 . . . . . Attached 66 | . . . . . . 6 1 12 . 7 1 5 1 8 1 12 . 3 3 3 2 1 . Fabnet Peak Effective % . | . . . . . . . . . . . . . . . . . . . . . . . . Robots Rewired 3 | . . . . 2 . . . . 1 . . . . . . . . . . . . . . Allies Hacked . | . . . . . . . . . . . . . . . . . . . . . . . . Hacks Repelled . | . . . . . . . . . . . . . . . . . . . . . . . . Allies | -11 -10 -9 -8 -8 -8 -8 -7 -7 -6 -6 -5 -5 -5 -5 -4 -4 -4 -4 -3 -3 -2 -2 -1 -------- Run | Yrd Mat Mat Mat Gar Mat Gar Fac Gar Fac Gar Fac Gar Fac Gar Fac Gar Fac Gar Res Gar Res Qua Acc Total Allies 171 | . . . . 2 . 6 . 16 1 18 8 11 8 18 . 16 . 22 5 10 10 20 . Largest Group 6 | . . . . 2 . 5 4 5 1 3 3 2 6 6 1 4 . 5 3 3 5 5 . Highest-Rated Group 313 | . . . . 48 . 90 74 86 29 127 119 114 151 174 29 217 . 159 160 176 313 295 . Highest-Rated Ally 116 | . . . . 24 . 21 21 32 29 51 51 85 49 85 29 116 . 49 64 64 69 69 . Total Orders 1 | . . . . . . . . . . . . 1 . . . . . . . . . . . STAY 1 | . . . . . . . . . . . . 1 . . . . . . . . . . . Ally Attacks 850 | . . . . 14 . 22 7 104 7 61 48 52 29 92 3 83 . 70 23 45 31 159 . Total Damage 19855 | . . . . 317 . 277 138 1760 131 1233 1196 924 458 1849 55 2371 . 933 422 1640 1398 4753 . Kills 129 | . . . . 2 . 6 1 16 . 6 14 11 3 14 1 16 . 6 2 9 5 17 . Allies Corrupted 8 | . . . . . . . . 2 . . 1 . . 1 . . . . . 1 1 2 . Allies Melted 2 | . . . . . . . . . . . . . . 1 . . . 1 . . . . . Intel | -11 -10 -9 -8 -8 -8 -8 -7 -7 -6 -6 -5 -5 -5 -5 -4 -4 -4 -4 -3 -3 -2 -2 -1 ------- Run | Yrd Mat Mat Mat Gar Mat Gar Fac Gar Fac Gar Fac Gar Fac Gar Fac Gar Fac Gar Res Gar Res Qua Acc Robot Analysis Total 1 | . 1 . . . . . . . . . . . . . . . . . . . . . . Derelict Logs Recovered . | . . . . . . . . . . . . . . . . . . . . . . . . Drone Launches . | . . . . . . . . . . . . . . . . . . . . . . . . Drone Recoveries . | . . . . . . . . . . . . . . . . . . . . . . . . Exploration | -11 -10 -9 -8 -8 -8 -8 -7 -7 -6 -6 -5 -5 -5 -5 -4 -4 -4 -4 -3 -3 -2 -2 -1 ------------- Run | Yrd Mat Mat Mat Gar Mat Gar Fac Gar Fac Gar Fac Gar Fac Gar Fac Gar Fac Gar Res Gar Res Qua Acc Turns Passed 23864 | 122 1192 770 1709 2403 104 1548 235 2278 252 1665 621 1684 725 1283 160 2015 16 1213 283 979 511 1744 352 Spaces Moved 9926 | 58 485 303 513 861 38 597 95 820 100 600 209 620 319 583 88 804 10 605 116 448 287 731 636 Core 649 | 1 . . . . . . . . . . . . . . . . . . . . . 26 622 Treads 9269 | 57 485 303 513 861 38 597 95 820 100 600 209 620 319 583 88 804 10 605 116 448 287 705 6 Legs . | . . . . . . . . . . . . . . . . . . . . . . . . Wheels . | . . . . . . . . . . . . . . . . . . . . . . . . Hover . | . . . . . . . . . . . . . . . . . . . . . . . . Flight 8 | . . . . . . . . . . . . . . . . . . . . . . . 8 Fastest Speed 40 | 50 160 160 160 240 240 240 240 240 242 242 242 242 160 160 160 160 160 160 160 160 160 50 40 Average Speed 197 | 158 220 160 236 240 240 240 240 241 242 242 242 242 189 163 160 210 160 160 160 160 160 158 50 Slowest Speed 243 | 160 240 160 240 240 240 240 240 243 242 243 242 242 242 240 160 240 160 160 160 160 160 232 145 Overloaded Moves . | . . . . . . . . . . . . . . . . . . . . . . . . Propulsion Burnouts . | . . . . . . . . . . . . . . . . . . . . . . . . Robots Hopped . | . . . . . . . . . . . . . . . . . . . . . . . . Cave-ins Triggered 2 | . . . . . . . . . . . . . . . . . . . . 1 . 1 . Teleports 4 | . . . . . . . . . . . . . . . . . . . . . . 3 1 Exploration Rate (%) 39 | 5 67 41 51 78 6 79 5 82 4 61 9 69 13 67 3 69 1 78 2 58 8 69 26 Regions Visited 23 Branch Regions 1 Pre-discovered Areas . | . . . . . . . . . . . . . . . . . . . . . . . . Known Exits Taken 10 | . . . 1 . 1 . 1 . 1 . 1 . 1 . 1 . 1 . 1 . 1 . . Unknown Exits Taken 4 | 1 1 1 . . . . . . . . . . . . . . . . . . . 1 . Scrap Searched . | . . . . . . . . . . . . . . . . . . . . . . . . Spaces Dug 12 | . . . . . . . . . 1 . . . . . 1 . . . . 5 . 5 . Terrain Destroyed 127 | . . . 11 . 1 . . . 1 . . 18 1 . 1 5 . 6 2 28 1 28 24 Melee 5 | . . . . . . . . . 1 . . . . . 1 . . . . . . 3 . Projectile 69 | . . . . . 1 . . . . . . . 1 . . 5 . 6 2 28 1 25 . AOE 53 | . . . 11 . . . . . . . . 18 . . . . . . . . . . 24 Terrain Rammed . | . . . . . . . . . . . . . . . . . . . . . . . . Walls Destroyed . | . . . . . . . . . . . . . . . . . . . . . . . . Machines Disabled . | . . . . . . . . . . . . . . . . . . . . . . . . Actions | -11 -10 -9 -8 -8 -8 -8 -7 -7 -6 -6 -5 -5 -5 -5 -4 -4 -4 -4 -3 -3 -2 -2 -1 --------- Run | Yrd Mat Mat Mat Gar Mat Gar Fac Gar Fac Gar Fac Gar Fac Gar Fac Gar Fac Gar Res Gar Res Qua Acc Total 12954 | 73 554 498 880 1095 50 692 101 1050 106 759 297 750 397 815 101 1035 10 741 196 615 322 1154 663 Wait 1117 | . 23 91 199 67 . 21 3 94 . 46 45 18 7 84 1 78 . 17 57 55 2 201 8 Move 9910 | 57 484 302 513 860 38 596 95 819 100 599 209 618 319 582 88 803 10 603 116 447 286 730 636 Hop . | . . . . . . . . . . . . . . . . . . . . . . . . Pick Up 206 | 3 10 19 22 13 3 12 1 11 . 11 1 8 1 16 . 19 . 14 3 12 4 20 3 Fast Attach 81 | 7 4 2 9 1 1 1 . 2 1 6 2 2 6 5 1 4 . 1 2 1 1 17 5 Attach 99 | . . 1 5 4 . 5 1 4 1 4 2 2 2 7 1 11 . 10 3 13 3 18 2 Detach 13 | . . . . . . . . . . . . . 2 . . 2 . 2 . 2 1 3 1 Swap 206 | . 1 12 11 16 1 9 . 39 2 18 9 19 8 14 . 15 . 4 4 9 3 12 . Drop 222 | . 1 18 20 21 5 9 . 18 . 11 2 9 7 20 . 17 . 14 2 9 2 33 4 Fire 848 | 6 23 50 96 80 2 26 1 35 1 39 27 52 36 38 8 68 . 75 9 63 20 92 1 Melee 120 | . . . . . . 2 . 22 1 10 . 2 1 49 2 7 . . . 4 . 20 . Ram 2 | . . . . . . . . . . . . . . . . . . . . . . . 2 Kick . | . . . . . . . . . . . . . . . . . . . . . . . . Crush 31 | . 8 3 5 . . . . . . . . . 6 . . . . . . . . 8 1 Escape Stasis 73 | . . . . 12 . 11 . 6 . 14 . 20 . . . 10 . . . . . . . Rewire 26 | . . . . 21 . . . . . 1 . . 2 . . 1 . 1 . . . . . Trap . | . . . . . . . . . . . . . . . . . . . . . . . . Miscellaneous . | . . . . . . . . . . . . . . . . . . . . . . . . Route ------- -11/Scrapyard -10/Materials (discovered 3 exits: *Mat x2 / [*Min]) -9/Materials -8/Materials -8/Garrison (discovered 3 exits: *Mat x3) -8/Materials -8/Garrison (discovered 3 exits: *Fac x3) -7/Factory -7/Garrison (discovered 3 exits: *Fac x3) -6/Factory -6/Garrison (discovered 3 exits: *Fac x3) -5/Factory -5/Garrison (discovered 3 exits: *Fac x3) -5/Factory -5/Garrison (discovered 3 exits: *Fac x3) -4/Factory -4/Garrison (discovered 2 exits: *Fac x2) -4/Factory -4/Garrison (discovered 3 exits: *Res x3) -3/Research -3/Garrison (discovered 3 exits: [*Res x3]) -2/Research -2/Quarantine -1/Access History --------- Turn | Location | Event 11 | -11/Scrapyard | Discovered new exit (range 16) 123 | -11/Scrapyard | Entered Materials 229 | -10/Materials | Repaired Lgt. Treads 286 | -10/Materials | Discovered new exit (range 16) 300 | -10/Materials | Discovered new exit (range 14) 309 | -10/Materials | Build established: Mutant 423 | -10/Materials | Central database locked down 1164 | -10/Materials | Discovered new exit (range 8) 1315 | -10/Materials | Entered another Materials area 1315 | -9/Materials | Evolved 2 slots: Propulsion x1, Utility x1 1642 | -9/Materials | Discovered new exit (range 13) 1721 | -9/Materials | Repaired Assault Rifle 1748 | -9/Materials | Repaired Lgt. Treads 1775 | -9/Materials | Repaired Lgt. Treads 2085 | -9/Materials | Entered another Materials area 2085 | -8/Materials | Evolved 2 slots: Utility x2 2657 | -8/Materials | Repaired Lgt. Treads 2690 | -8/Materials | Repaired Imp. Light Cannon 2717 | -8/Materials | Repaired Lgt. Armor Plating 2763 | -8/Materials | Repaired Gauss Rifle 3108 | -8/Materials | Repaired Broken Enh. Autogun 3301 | -8/Materials | Build established: Scavenger-Mutant 3794 | -8/Materials | Identified exit to Garrison 3794 | -8/Materials | Entered Garrison 3920 | -8/Garrison | Triggered checkpoint 3954 | -8/Garrison | Garrison Relay disabled 4149 | -8/Garrison | Triggered checkpoint 4321 | -8/Garrison | Discovered new exit (range 14) 4604 | -8/Garrison | Triggered checkpoint 4746 | -8/Garrison | Discovered new exit (range 11) 4813 | -8/Garrison | Garrison Relay disabled 4854 | -8/Garrison | Triggered checkpoint 4881 | -8/Garrison | Garrison Relay disabled 5139 | -8/Garrison | Discovered new exit (range 15) 5234 | -8/Garrison | Triggered checkpoint 5274 | -8/Garrison | Garrison Relay disabled 5564 | -8/Garrison | Triggered checkpoint 5676 | -8/Garrison | Installed Relay Interface Framework 5890 | -8/Garrison | Expanded RIF knowledge: Zone Cloak 6178 | -8/Garrison | Build established: Bothacker-Mutant 6197 | -8/Garrison | Entered Materials 6301 | -8/Materials | Identified exit to Garrison 6301 | -8/Materials | Entered Garrison 6340 | -8/Garrison | Expanded RIF knowledge: Program Shield 6396 | -8/Garrison | Triggered checkpoint 6425 | -8/Garrison | Garrison Relay disabled 6612 | -8/Garrison | Triggered checkpoint 6618 | -8/Garrison | Triggered checkpoint 6654 | -8/Garrison | Triggered checkpoint 6718 | -8/Garrison | Discovered new exit (range 8) 6747 | -8/Garrison | Learned Factory security intel 6762 | -8/Garrison | Triggered checkpoint 6801 | -8/Garrison | Garrison Relay disabled 6972 | -8/Garrison | Triggered checkpoint 7020 | -8/Garrison | Garrison Relay disabled 7118 | -8/Garrison | Discovered new exit (range 14) 7406 | -8/Garrison | Garrison Relay disabled 7436 | -8/Garrison | Garrison Relay disabled 7541 | -8/Garrison | Discovered new exit (range 14) 7774 | -8/Garrison | Discovered new exit (range 25) 7774 | -8/Garrison | Discovered new exit (range 70) 7774 | -8/Garrison | Discovered new exit (range 65) 7849 | -8/Garrison | Entered Factory 7849 | -7/Factory | Accompanied by 4 allies 7849 | -7/Factory | Evolved 2 slots: Utility x2 8084 | -7/Factory | Identified exit to Garrison 8084 | -7/Factory | Entered Garrison 8084 | -7/Garrison | Accompanied by 4 allies 8086 | -7/Garrison | Triggered checkpoint 8086 | -7/Garrison | Triggered checkpoint 8166 | -7/Garrison | Expanded RIF knowledge: Autooverride 8198 | -7/Garrison | Triggered checkpoint 8232 | -7/Garrison | Garrison Relay disabled 8344 | -7/Garrison | Triggered checkpoint 8344 | -7/Garrison | Triggered checkpoint 8403 | -7/Garrison | Lost 4 allies 8407 | -7/Garrison | Heavy support dispatched to Factory 8413 | -7/Garrison | Heavy support dispatched to Factory 8451 | -7/Garrison | Discovered new exit (range 12) 8475 | -7/Garrison | Build established: Botlord-Mutant 8522 | -7/Garrison | Triggered checkpoint 8714 | -7/Garrison | Garrison Relay disabled 8731 | -7/Garrison | Garrison Relay disabled 9039 | -7/Garrison | H-XX Assembler disabled 9528 | -7/Garrison | Garrison Relay disabled 9732 | -7/Garrison | Discovered new exit (range 10) 10101 | -7/Garrison | Lost 3 allies 10204 | -7/Garrison | Triggered checkpoint 10284 | -7/Garrison | Discovered new exit (range 9) 10362 | -7/Garrison | Entered Factory 10362 | -6/Factory | Evolved 2 slots: Propulsion x1, Utility x1 10614 | -6/Factory | Identified exit to Garrison 10614 | -6/Factory | Entered Garrison 10664 | -6/Garrison | Triggered checkpoint 10806 | -6/Garrison | Garrison Relay disabled 10877 | -6/Garrison | Expanded RIF knowledge: Autoassimilate 11096 | -6/Garrison | Triggered checkpoint 11097 | -6/Garrison | Triggered checkpoint 11144 | -6/Garrison | Lost 5 allies 11188 | -6/Garrison | Triggered checkpoint 11258 | -6/Garrison | Triggered checkpoint 11328 | -6/Garrison | Triggered checkpoint 11357 | -6/Garrison | Garrison Relay disabled 11417 | -6/Garrison | Discovered new exit (range 14) 11636 | -6/Garrison | Discovered new exit (range 10) 11690 | -6/Garrison | Triggered checkpoint 11867 | -6/Garrison | Garrison Relay disabled 12065 | -6/Garrison | Rescued a captive Derelict 12106 | -6/Garrison | Triggered checkpoint 12154 | -6/Garrison | Garrison Relay disabled 12252 | -6/Garrison | Discovered new exit (range 10) 12279 | -6/Garrison | Entered Factory 12279 | -5/Factory | Accompanied by 2 allies 12279 | -5/Factory | Evolved 2 slots: Utility x2 12900 | -5/Factory | Identified exit to Garrison 12900 | -5/Factory | Entered Garrison 12900 | -5/Garrison | Accompanied by 1 ally 12922 | -5/Garrison | Lost 3 allies 13030 | -5/Garrison | Triggered checkpoint 13078 | -5/Garrison | Expanded RIF knowledge: Coupler Efficiency 13119 | -5/Garrison | Garrison Relay disabled 13289 | -5/Garrison | Spotted B-75 Beast 13290 | -5/Garrison | Triggered checkpoint 13305 | -5/Garrison | Assimilated Beast 6a with formatsys_high 13346 | -5/Garrison | Triggered checkpoint 13452 | -5/Garrison | Triggered checkpoint 13499 | -5/Garrison | Lost 3 allies 13688 | -5/Garrison | Triggered checkpoint 13730 | -5/Garrison | Garrison Relay disabled 13796 | -5/Garrison | Discovered new exit (range 10) 14081 | -5/Garrison | Discovered new exit (range 10) 14136 | -5/Garrison | Triggered checkpoint 14184 | -5/Garrison | Garrison Relay disabled 14509 | -5/Garrison | Discovered new exit (range 12) 14584 | -5/Garrison | Entered Factory 15124 | -5/Factory | Lost 6 allies 15309 | -5/Factory | Identified exit to Garrison 15309 | -5/Factory | Entered Garrison 15348 | -5/Garrison | Triggered checkpoint 15397 | -5/Garrison | Garrison Relay disabled 15547 | -5/Garrison | Spotted B-75 Beast 15560 | -5/Garrison | Triggered checkpoint 15574 | -5/Garrison | Triggered checkpoint 15578 | -5/Garrison | Assimilated Beast 6b with formatsys_high 15623 | -5/Garrison | Lost 3 allies 15659 | -5/Garrison | Discovered new exit (range 14) 15696 | -5/Garrison | Destroyed Beast 6b 15734 | -5/Garrison | Triggered checkpoint 15772 | -5/Garrison | Garrison Relay disabled 15881 | -5/Garrison | Triggered checkpoint 15883 | -5/Garrison | Triggered checkpoint 15969 | -5/Garrison | Expanded RIF knowledge: Signal Jamming 16126 | -5/Garrison | Triggered checkpoint 16174 | -5/Garrison | Lost 3 allies 16274 | -5/Garrison | Garrison Relay disabled 16340 | -5/Garrison | Discovered new exit (range 10) 16435 | -5/Garrison | Discovered new exit (range 9) 16592 | -5/Garrison | Entered Factory 16592 | -4/Factory | Accompanied by 1 ally 16592 | -4/Factory | Evolved 2 slots: Utility x2 16752 | -4/Factory | Identified exit to Garrison 16752 | -4/Factory | Entered Garrison 16752 | -4/Garrison | Accompanied by 1 ally 16812 | -4/Garrison | Learned Factory security intel 16894 | -4/Garrison | Triggered checkpoint 17188 | -4/Garrison | Triggered checkpoint 17262 | -4/Garrison | Garrison Relay disabled 17528 | -4/Garrison | Triggered checkpoint 17528 | -4/Garrison | Spotted B-86 Titan 17533 | -4/Garrison | Assimilated Titan 7a with formatsys_high 17717 | -4/Garrison | Discovered new exit (range 10) 17992 | -4/Garrison | Triggered checkpoint 17992 | -4/Garrison | Discovered new exit (range 11) 18059 | -4/Garrison | Garrison Relay disabled 18302 | -4/Garrison | Triggered checkpoint 18362 | -4/Garrison | Triggered checkpoint 18380 | -4/Garrison | Expanded RIF knowledge: Autooverride 18456 | -4/Garrison | Triggered checkpoint 18730 | -4/Garrison | Expanded RIF knowledge: Structural Interface 18767 | -4/Garrison | Entered Factory 18783 | -4/Factory | Identified exit to Garrison 18783 | -4/Factory | Entered Garrison 18820 | -4/Garrison | Triggered checkpoint 18871 | -4/Garrison | Lost 4 allies 18877 | -4/Garrison | Garrison Relay disabled 19002 | -4/Garrison | Spotted B-86 Titan 19011 | -4/Garrison | Triggered checkpoint 19018 | -4/Garrison | Triggered checkpoint 19028 | -4/Garrison | Triggered checkpoint 19042 | -4/Garrison | Triggered checkpoint 19046 | -4/Garrison | Found Hvy. Reflective Plating 19077 | -4/Garrison | Lost 8 allies 19155 | -4/Garrison | Expanded RIF knowledge: Zone Cloak 19198 | -4/Garrison | Discovered new exit (range 15) 19265 | -4/Garrison | Triggered checkpoint 19340 | -4/Garrison | Garrison Relay disabled 19500 | -4/Garrison | Triggered checkpoint 19516 | -4/Garrison | Garrison Relay disabled 19584 | -4/Garrison | Triggered checkpoint 19597 | -4/Garrison | Discovered new exit (range 12) 19718 | -4/Garrison | Triggered checkpoint 19773 | -4/Garrison | Discovered new exit (range 12) 19861 | -4/Garrison | Garrison Relay disabled 19996 | -4/Garrison | Entered Research 19996 | -3/Research | Accompanied by 1 ally 19996 | -3/Research | Evolved 2 slots: Utility x2 20200 | -3/Research | Repaired Broken Imp. Remote Datajack? 20246 | -3/Research | First assault squad dispatched 20279 | -3/Research | Identified exit to Garrison 20279 | -3/Research | Entered Garrison 20279 | -3/Garrison | Accompanied by 2 allies 20342 | -3/Garrison | Triggered checkpoint 20399 | -3/Garrison | Lost 4 allies 20477 | -3/Garrison | Triggered checkpoint 20565 | -3/Garrison | Discovered new exit (range 78) 20565 | -3/Garrison | Discovered new exit (range 62) 20565 | -3/Garrison | Discovered new exit (range 40) 20579 | -3/Garrison | Garrison Relay disabled 20598 | -3/Garrison | Garrison Relay disabled 20692 | -3/Garrison | Spotted B-86 Titan 20798 | -3/Garrison | Expanded RIF knowledge: Command Fork 20810 | -3/Garrison | Triggered checkpoint 20858 | -3/Garrison | Garrison Relay disabled 20870 | -3/Garrison | Learned Research security intel 21072 | -3/Garrison | Crushed by falling debris 21072 | -3/Garrison | System corruption reached 10% 21127 | -3/Garrison | Expanded RIF knowledge: Coupler Efficiency 21188 | -3/Garrison | Garrison Relay disabled 21258 | -3/Garrison | Entered Research 21258 | -2/Research | Accompanied by 1 ally 21258 | -2/Research | Evolved 2 slots: Utility x2 21508 | -2/Research | First assault squad dispatched 21605 | -2/Research | Lost 3 allies 21713 | -2/Research | Discovered new exit (range 16) 21738 | -2/Research | Lost 4 allies 21767 | -2/Research | Identified exit to Quarantine 21769 | -2/Research | Entered Quarantine 21769 | -2/Quarantine | Accompanied by 3 allies 21793 | -2/Quarantine | Found Alien Artifact 21835 | -2/Quarantine | Found Alien Artifact 22077 | -2/Quarantine | Lost 3 allies 22122 | -2/Quarantine | Found Phase Armor 22226 | -2/Quarantine | Found Alien Slashing Weapon 22226 | -2/Quarantine | Identified Sigix Broadsword 22251 | -2/Quarantine | Discovered new exit (range 10) 22300 | -2/Quarantine | Identified Hpw. Transdimensional Reconstructor 22300 | -2/Quarantine | Warped through subspace 22312 | -2/Quarantine | Lost 4 allies 22334 | -2/Quarantine | Cryocooling Duct disabled 22336 | -2/Quarantine | Cryocooling Duct disabled 22349 | -2/Quarantine | Ambient heat levels rising (+20) 22349 | -2/Quarantine | Non-combat units ordered to evacuate 22351 | -2/Quarantine | Ambient heat levels rising (+20) 22351 | -2/Quarantine | Combat units ordered to evacuate 22390 | -2/Quarantine | Found Prototype Protection 22390 | -2/Quarantine | Identified Centrium Heavy Armor Plating 22396 | -2/Quarantine | Found Centrium Heavy Armor Plating 22401 | -2/Quarantine | Found Centrium Heavy Armor Plating 22451 | -2/Quarantine | Quarantine Guard activated 22552 | -2/Quarantine | Crushed by falling debris 22562 | -2/Quarantine | Spotted Quarantine Guard 22571 | -2/Quarantine | Allies destroyed Quarantine Guard 22672 | -2/Quarantine | Found Dimensional Node Initializer 22679 | -2/Quarantine | Found Transdimensional Reconstructor 22682 | -2/Quarantine | Found Transdimensional Reconstructor 22685 | -2/Quarantine | Found Transdimensional Reconstructor 22713 | -2/Quarantine | Spotted Quarantine Guard 22720 | -2/Quarantine | Destroyed Quarantine Guard 22722 | -2/Quarantine | Spotted Alpha 7 22733 | -2/Quarantine | Allies destroyed Alpha 7 22761 | -2/Quarantine | Found Sigix Terminator 22790 | -2/Quarantine | Spotted Quarantine Guard 22808 | -2/Quarantine | Destroyed Quarantine Guard 22810 | -2/Quarantine | Spotted Quarantine Guard 22817 | -2/Quarantine | Spotted Quarantine Guard 22844 | -2/Quarantine | Destroyed Quarantine Guard 22852 | -2/Quarantine | Destroyed Quarantine Guard 22872 | -2/Quarantine | Spotted Quarantine Guard 22930 | -2/Quarantine | Destroyed Quarantine Guard 22967 | -2/Quarantine | Spotted Quarantine Guard 22998 | -2/Quarantine | Found Alien Impact Weapon 23116 | -2/Quarantine | Spotted Quarantine Guard 23121 | -2/Quarantine | Cryocooling Duct disabled 23136 | -2/Quarantine | Ambient heat levels rising (+20) 23152 | -2/Quarantine | Destroyed Quarantine Guard 23177 | -2/Quarantine | Lost 3 parts (1n2u) 23193 | -2/Quarantine | Identified Core Stripper 23200 | -2/Quarantine | System corruption reached 10% 23249 | -2/Quarantine | Spotted Fortress 23259 | -2/Quarantine | Warped through subspace 23266 | -2/Quarantine | Spotted Quarantine Guard 23292 | -2/Quarantine | Warped through subspace 23430 | -2/Quarantine | Core integrity fell below 50% 23438 | -2/Quarantine | Destroyed Quarantine Guard 23492 | -2/Quarantine | Spotted Quarantine Guard 23496 | -2/Quarantine | Released all parts (13) 23513 | -2/Quarantine | Entered Access 23513 | -1/Access | Evolved 2 slots: Power x1, Weapon x1 23673 | -1/Access | Energy Cycler disabled 23698 | -1/Access | Spotted B-99 Colossus 23712 | -1/Access | Warped through subspace 23716 | -1/Access | Spotted B-99 Colossus 23763 | -1/Access | First assault squad dispatched 23790 | -1/Access | Build established: Mutant 23849 | -1/Access | Spotted B-99 Colossus 23850 | -1/Access | Core integrity fell below 50% 23850 | -1/Access | Spotted B-99 Colossus 23853 | -1/Access | Spotted B-99 Colossus 23859 | -1/Access | Core integrity fell below 20% 23865 | -1/Access | Destroyed by B-99 Colossus with Multirail Last Messages --------------- 23854_ K-01 Serf collects debris. 23854_ Slug penetrates Wall. 23854_ Penetrated by Slug. 23854_ K-01 Serf collects debris. 23855_ K-01 Serf cleans the Terminal. 23855_ R-10 Processor collects Lgt. Ion Engine. 23858_ W-44 Eye Antigrav System blasted off. 23858_ K-01 Serf destroyed. 23858_ Penetrated by Slug. 23858_ Slug penetrates Wall. 23858_ Penetrated by Slug. 23859_ B-99 Colossus activates siege mode. 23859_ K-01 Serf collects debris. 23861_ Penetrated by Slug. 23861_ Slug penetrates Door. 23861_ Penetrated by Slug. 23864_ Detecting nearby Garrison Access. 23865_ Penetrated by Slug. 23865_ Slug penetrates Wall. 23865_ Penetrated by Slug. Map ----- +----------------------------------------------------+ | ?????????????????????????????????????????????????? | | ?????????????????????????????????????????????????? | | ?????????????????????????????????????????????????? | | ?????????????????????????????????????????????????? | | ?????????????????????????????????????????????????? | | ?????????????????????????????????????????????????? | | ?????????????????????????????????????????????????? | | ?????????????????????????????????????????????????? | | ?????????????????????????????????????????????????? | | ?????????????????????????????????????????????????? | | ?????????????????????????????????????????????????? | | ??????????????????????????? ????????????????????? | | ??????????????????????????# ????????????????????? | | ??????????????????????????# ????????????????????? | | ??????????????????????????# #???????????????????? | | ??????????????????????????# #???????????????????? | | ??????????????????????????# #???????????????????? | | ??????????????????????????# #???????????????????? | | ?????????????????????????? ???????????????????? | | ??????????????????######### ???????????????????? | | ??????????????????#]! # #???????????????????? | | ??????????????????#]! # #??????###??????????? | | ??????????????????#!! # #?????? #??????????? | | ??????????????????# ! # #####;;BB###????????? | | ?????????????????#######+## g #????????? | | ????????????"" + h %@ u #????????? | | ?????????????????########## Rg #????????? | | ??????????????????????????#+####" #????????? | | ?????????????????????????? ??#"%= ##????????? | | ?????????????????????????? ??#"! #?????????? | | ????????????????????????? ?#T % #?????????? | | ????????????????????????? ?#" #?????????? | | ????????????????????????== #" #?????????? | | ????????????????????????== #"% #?????? | | ??????????????????????? = # *= #?????# | | ??????????????????????? # #?????+ | | ?????????????????????? # #?????# | | ?????????????????????? #% #?????# " | | ????????????????????? # #######"%"" | | ????????????????????? # ! " | | ???????????????????????######### != | | ???????????????????????????????# %% | | ???????????????????????????????# !!! * | | ???????????????????????????????# !! | | ???????????????????????????????# !! | | ??????????????????????? ### | | ?????????????????????? % | | ?????????????????????" | | ?????????????????????? ""Y"" | | ?????????????????????? """"" | +----------------------------------------------------+ Best States ------------- Heat Dissipation 118 Energy Generation 31 Energy Capacity 340 Matter Stores 544 Matter Capacity 550 Sight Range 16 Terrain Scan Density 10 Power Amplification 30 Armor Coverage 1200 Resistance: KI 30 Phase Shifting 5 Evasion (%) 62 Targeting Accuracy 14 Recoil Reduction 4 Kinecelleration 40 Offensive Hacking 10 Relay Coupler Types 6 Relay Coupler Value 507 Item Schematics ----------------- Com. Tesla Bomb Launcher | -2/Quarantine | Archive Spectral Analyzer | -2/Quarantine | Archive Adv. Kinecellerator | -2/Quarantine | Archive Adv. KE Penetrator | -2/Quarantine | Archive Diametric Drive | -2/Quarantine | Archive Cld. Antigrav System | -2/Quarantine | Archive Hvy. Proton Cannon | -2/Quarantine | Archive Gravity Flail | -2/Quarantine | Archive Exp. Target Analyzer | -2/Quarantine | Archive Adv. Myomer Leg | -2/Quarantine | Archive Exp. Q-thruster | -2/Quarantine | Archive Robot Schematics ------------------ Y-72 Warden | -2/Quarantine | Archive A-27 Freighter | -2/Quarantine | Archive Fabricated ------------ Nothing Alien Tech Used ----------------- Phase Armor Sigix Broadsword High-powered Transdimensional Reconstructor Core Stripper Transdimensional Reconstructor Achievements -------------- None Challenges ------------ None Game ------ Seed CobblerHelicalMicrothruster Manual? 0 Play Time 02:34:12 Cumulative 897.1 hours Start 2024.03.31 @ 22:39:33 End 2024.04.01 @ 01:09:06 Sessions 1 Manual Loads 0 Difficulty Rogue Special Mode None Game No. 1379 Rogue 1379 Adventurer 0 Explorer 0 Win Type - Total 86 Types 52/1/14/14/4/0/0/1/0 Lore% 90 Gallery% 92 Achievement% 85 Wizard Run 0 Options --------- Layout 0 ASCII 1 Keyboard 0 Movement Numpad Keybinds 0 Fullscreen 2 Font 18/SmallcapsGlow Map View 76x50 Zoom Use 0% Tactical HUD 1 Map Filters NONE Filters NONE Steam 1 RUN: 85417575-b30c-46d1-b937-e4bc02afd449